[Event "Early-Titled-Tuesday-Blitz-February-13-2024"]
[Site "Chess.com"]
[Date "2024.02.13"]
[Round "7"]
[White "szefru"]
[Black "VinzentSpitzl"]
[Result "0-1"]
[WhiteElo "2269"]
[BlackElo "2511"]
[TimeControl "180+1"]
[EndTime "9:22:16 PST"]
[Termination "VinzentSpitzl won on time"]

1. e4 {[%clk 0:03:00.9]} 1... c5 {[%clk 0:02:51.8]} 2. Nf3 {[%clk 0:03:00.6]}
2... d6 {[%clk 0:02:51.5]} 3. d4 {[%clk 0:03:00]} 3... cxd4 {[%clk 0:02:51.8]}
4. Qxd4 {[%clk 0:03:00.9]} 4... Nc6 {[%clk 0:02:50.9]} 5. Bb5 {[%clk 0:03:00.2]}
5... Bd7 {[%clk 0:02:50.5]} 6. Qd3 {[%clk 0:03:00.3]} 6... Nf6 {[%clk
0:02:45.4]} 7. c4 {[%clk 0:03:00.3]} 7... Rc8 {[%clk 0:02:42]} 8. Nc3 {[%clk
0:02:59.5]} 8... e6 {[%clk 0:02:40.1]} 9. O-O {[%clk 0:02:55.3]} 9... Be7 {[%clk
0:02:39.8]} 10. b3 {[%clk 0:02:41.4]} 10... O-O {[%clk 0:02:39.4]} 11. Bb2
{[%clk 0:02:39.4]} 11... Ne5 {[%clk 0:02:28.2]} 12. Nxe5 {[%clk 0:02:36.9]}
12... dxe5 {[%clk 0:02:27.7]} 13. Bxd7 {[%clk 0:02:33.4]} 13... Qxd7 {[%clk
0:02:27.5]} 14. Rad1 {[%clk 0:02:22.8]} 14... Qc6 {[%clk 0:02:24.6]} 15. Qe2
{[%clk 0:01:40]} 15... a6 {[%clk 0:02:14.2]} 16. Rd3 {[%clk 0:01:31.9]} 16...
Bb4 {[%clk 0:02:06.1]} 17. f3 {[%clk 0:01:30.9]} 17... Bc5+ {[%clk 0:02:05.8]}
18. Kh1 {[%clk 0:01:30.7]} 18... Bd4 {[%clk 0:02:05.4]} 19. Nd1 {[%clk
0:01:11.6]} 19... Rfd8 {[%clk 0:02:02.8]} 20. Bxd4 {[%clk 0:01:11.4]} 20... exd4
{[%clk 0:01:58]} 21. e5 {[%clk 0:01:11.7]} 21... Ne8 {[%clk 0:01:53.8]} 22. Nf2
{[%clk 0:01:01.6]} 22... b5 {[%clk 0:01:53.4]} 23. Rc1 {[%clk 0:00:50.5]} 23...
Nc7 {[%clk 0:01:51.6]} 24. Ne4 {[%clk 0:00:46.1]} 24... Nd5 {[%clk 0:01:39.1]}
25. Qd2 {[%clk 0:00:25.7]} 25... Nb6 {[%clk 0:00:58.7]} 26. c5 {[%clk
0:00:20.7]} 26... Nd5 {[%clk 0:00:55.1]} 27. Nd6 {[%clk 0:00:21]} 27... Rc7
{[%clk 0:00:53.8]} 28. Rxd4 {[%clk 0:00:21.5]} 28... h6 {[%clk 0:00:50]} 29. b4
{[%clk 0:00:21.5]} 29... Ra8 {[%clk 0:00:48.7]} 30. a3 {[%clk 0:00:20.4]} 30...
a5 {[%clk 0:00:48]} 31. Rg4 {[%clk 0:00:20.5]} 31... Kf8 {[%clk 0:00:44.9]} 32.
Qd3 {[%clk 0:00:18]} 32... Kg8 {[%clk 0:00:41.9]} 33. Qd2 {[%clk 0:00:16.4]}
33... Kh8 {[%clk 0:00:41.1]} 34. h4 {[%clk 0:00:12.1]} 34... axb4 {[%clk
0:00:40.2]} 35. axb4 {[%clk 0:00:13]} 35... Rca7 {[%clk 0:00:37.5]} 36. Qd3
{[%clk 0:00:12.9]} 36... Qc7 {[%clk 0:00:34.4]} 37. Nxb5 {[%clk 0:00:11.9]}
37... Qxe5 {[%clk 0:00:33.4]} 38. Nxa7 {[%clk 0:00:12.3]} 38... Rxa7 {[%clk
0:00:34.3]} 39. c6 {[%clk 0:00:12.5]} 39... Qb2 {[%clk 0:00:29.1]} 40. Rb1
{[%clk 0:00:09.6]} 40... Ra1 {[%clk 0:00:27.3]} 41. Rxa1 {[%clk 0:00:08.9]}
41... Qxa1+ {[%clk 0:00:28.2]} 42. Kh2 {[%clk 0:00:09.6]} 42... Qe5+ {[%clk
0:00:28.6]} 43. g3 {[%clk 0:00:07.2]} 43... Ne3 {[%clk 0:00:20.9]} 44. Rd4
{[%clk 0:00:04.9]} 44... Nf5 {[%clk 0:00:15.1]} 45. Rd8+ {[%clk 0:00:04.7]}
45... Kh7 {[%clk 0:00:15.4]} 46. f4 {[%clk 0:00:05.3]} 46... Qb2+ {[%clk
0:00:14.3]} 47. Kh3 {[%clk 0:00:05.7]} 47... Qc1 {[%clk 0:00:11.6]} 48. Qd1
{[%clk 0:00:03.5]} 48... Qxc6 {[%clk 0:00:10.4]} 49. g4 {[%clk 0:00:03.5]} 49...
Ne7 {[%clk 0:00:05.1]} 50. Qd3+ {[%clk 0:00:03.8]} 50... g6 {[%clk 0:00:05.5]}
51. h5 {[%clk 0:00:03.8]} 51... Qh1+ {[%clk 0:00:05.2]} 52. Kg3 {[%clk
0:00:04.3]} 52... Qg1+ {[%clk 0:00:04.6]} 53. Kf3 {[%clk 0:00:04.8]} 53... Qh1+
{[%clk 0:00:04.3]} 54. Ke3 {[%clk 0:00:05]} 54... Nd5+ {[%clk 0:00:03.9]} 55.
Rxd5 {[%clk 0:00:04.2]} 55... exd5 {[%clk 0:00:04.5]} 56. hxg6+ {[%clk
0:00:05.1]} 56... fxg6 {[%clk 0:00:05.4]} 57. Qd4 {[%clk 0:00:05]} 57... Qg1+
{[%clk 0:00:05.2]} 58. Kd3 {[%clk 0:00:05.1]} 58... Qd1+ {[%clk 0:00:05.4]} 59.
Kc3 {[%clk 0:00:05.4]} 59... Qa1+ {[%clk 0:00:03.9]} 60. Kd3 {[%clk 0:00:05.9]}
60... Qd1+ {[%clk 0:00:04.5]} 61. Ke3 {[%clk 0:00:03.6]} 61... Qxg4 {[%clk
0:00:04.8]} 62. b5 {[%clk 0:00:03]} 62... Qd7 {[%clk 0:00:03.5]} 63. b6 {[%clk
0:00:03.1]} 63... h5 {[%clk 0:00:03.9]} 64. Qf6 {[%clk 0:00:01.5]} 64... Qe8+
{[%clk 0:00:02.3]} 65. Kd4 {[%clk 0:00:01.3]} 65... Qe4+ {[%clk 0:00:02.7]} 66.
Kc5 {[%clk 0:00:01.5]} 66... d4 {[%clk 0:00:02]} 0-1

[Event "Early-Titled-Tuesday-Blitz-February-13-2024"]
[Site "Chess.com"]
[Date "2024.02.13"]
[Round "7"]
[White "iwanyu"]
[Black "Sanan_Sjugirov"]
[Result "0-1"]
[WhiteElo "2870"]
[BlackElo "3007"]
[TimeControl "180+1"]
[EndTime "9:22:18 PST"]
[Termination "Sanan_Sjugirov won on time"]

1. d4 {[%clk 0:03:00.9]} 1... Nf6 {[%clk 0:02:59.8]} 2. c4 {[%clk 0:03:01.2]}
2... e6 {[%clk 0:03:00.1]} 3. Nf3 {[%clk 0:03:01.6]} 3... d5 {[%clk 0:02:57.9]}
4. g3 {[%clk 0:03:01.7]} 4... Bb4+ {[%clk 0:02:58]} 5. Nc3 {[%clk 0:03:02.4]}
5... O-O {[%clk 0:02:49]} 6. Bg2 {[%clk 0:03:01.6]} 6... Bxc3+ {[%clk
0:02:28.6]} 7. bxc3 {[%clk 0:03:01.3]} 7... Ne4 {[%clk 0:02:29.3]} 8. Qc2 {[%clk
0:02:53]} 8... Nc6 {[%clk 0:02:29.1]} 9. O-O {[%clk 0:02:46.8]} 9... Na5 {[%clk
0:02:28.4]} 10. Ba3 {[%clk 0:02:42.8]} 10... Re8 {[%clk 0:02:27.9]} 11. Ne5
{[%clk 0:02:42]} 11... f6 {[%clk 0:02:21.8]} 12. Bb4 {[%clk 0:02:40.5]} 12...
fxe5 {[%clk 0:02:12.3]} 13. Bxa5 {[%clk 0:02:39.8]} 13... b6 {[%clk 0:01:53.4]}
14. Bb4 {[%clk 0:02:39.6]} 14... exd4 {[%clk 0:01:36.4]} 15. Bxe4 {[%clk
0:02:28.4]} 15... dxe4 {[%clk 0:01:35.6]} 16. Qxe4 {[%clk 0:02:28.3]} 16... Ba6
{[%clk 0:01:34.9]} 17. cxd4 {[%clk 0:02:20.9]} 17... Bxc4 {[%clk 0:01:34.4]} 18.
a4 {[%clk 0:02:14.5]} 18... a5 {[%clk 0:01:32.7]} 19. Bc3 {[%clk 0:02:10.3]}
19... Qd5 {[%clk 0:01:31.5]} 20. Qc2 {[%clk 0:02:04.8]} 20... Qf5 {[%clk
0:01:27.3]} 21. Qb2 {[%clk 0:01:59.3]} 21... Qe4 {[%clk 0:01:23.3]} 22. Rfe1
{[%clk 0:01:55.9]} 22... Rf8 {[%clk 0:01:16.3]} 23. f3 {[%clk 0:01:55.4]} 23...
Qe3+ {[%clk 0:01:16.3]} 24. Kg2 {[%clk 0:01:46.1]} 24... Bd5 {[%clk 0:00:52.9]}
25. Rf1 {[%clk 0:01:41.8]} 25... g5 {[%clk 0:00:44.4]} 26. h3 {[%clk 0:01:11.4]}
26... h5 {[%clk 0:00:43.8]} 27. g4 {[%clk 0:01:07.3]} 27... hxg4 {[%clk
0:00:42]} 28. hxg4 {[%clk 0:01:06.9]} 28... Rf4 {[%clk 0:00:41.1]} 29. Qd2
{[%clk 0:00:24.6]} 29... Rxg4+ {[%clk 0:00:38.5]} 30. Kh3 {[%clk 0:00:22.8]}
30... Qxd2 {[%clk 0:00:26.6]} 31. Bxd2 {[%clk 0:00:23.7]} 31... Rxd4 {[%clk
0:00:27]} 32. Bxg5 {[%clk 0:00:22.9]} 32... Kf7 {[%clk 0:00:23.9]} 33. e4 {[%clk
0:00:22.8]} 33... Bb3 {[%clk 0:00:23.6]} 34. Kg4 {[%clk 0:00:16.6]} 34... Rxa4
{[%clk 0:00:21]} 35. Rab1 {[%clk 0:00:16.1]} 35... Rb4 {[%clk 0:00:15.9]} 36.
Rh1 {[%clk 0:00:16.1]} 36... Rg8 {[%clk 0:00:14.9]} 37. Rh7+ {[%clk 0:00:15.2]}
37... Rg7 {[%clk 0:00:15.1]} 38. Rxg7+ {[%clk 0:00:15.5]} 38... Kxg7 {[%clk
0:00:16]} 39. Bf4 {[%clk 0:00:10.4]} 39... c5 {[%clk 0:00:14]} 40. Be5+ {[%clk
0:00:10.4]} 40... Kf7 {[%clk 0:00:14.2]} 41. Bc3 {[%clk 0:00:09.5]} 41... Rb5
{[%clk 0:00:12.9]} 42. Rh1 {[%clk 0:00:09.5]} 42... Ke7 {[%clk 0:00:12]} 43. Be5
{[%clk 0:00:08.7]} 43... c4 {[%clk 0:00:10.5]} 44. Rh7+ {[%clk 0:00:08.7]} 44...
Kd8 {[%clk 0:00:10.8]} 45. Bf6+ {[%clk 0:00:03.8]} 45... Kc8 {[%clk 0:00:10.8]}
46. f4 {[%clk 0:00:03.4]} 46... Bd1+ {[%clk 0:00:10.1]} 47. Kg3 {[%clk 0:00:03]}
47... Rb3+ {[%clk 0:00:10.4]} 48. Kg2 {[%clk 0:00:02.9]} 48... Bf3+ {[%clk
0:00:09.7]} 49. Kf2 {[%clk 0:00:02.4]} 49... Bxe4 {[%clk 0:00:10.6]} 50. Re7
{[%clk 0:00:01.3]} 50... Rf3+ {[%clk 0:00:09.9]} 51. Ke2 {[%clk 0:00:01.4]}
51... Rxf4 {[%clk 0:00:10.6]} 52. Be5 {[%clk 0:00:01.1]} 52... Rg4 {[%clk
0:00:10.7]} 53. Rxe6 {[%clk 0:00:01.4]} 53... Kb7 {[%clk 0:00:09.1]} 54. Re7+
{[%clk 0:00:01.4]} 54... Ka6 {[%clk 0:00:09.3]} 55. Ke3 {[%clk 0:00:02.1]} 55...
Bd3 {[%clk 0:00:08.4]} 56. Kd2 {[%clk 0:00:02.5]} 56... Rg2+ {[%clk 0:00:08.2]}
57. Kc3 {[%clk 0:00:02.6]} 57... Rc2+ {[%clk 0:00:09.1]} 58. Kd4 {[%clk
0:00:02.9]} 58... a4 {[%clk 0:00:08.2]} 59. Bb8 {[%clk 0:00:02.7]} 59... Bf1
{[%clk 0:00:06]} 60. Ra7+ {[%clk 0:00:02.5]} 60... Kb5 {[%clk 0:00:06.3]} 61.
Be5 {[%clk 0:00:02]} 61... Rd2+ {[%clk 0:00:06.3]} 62. Ke4 {[%clk 0:00:01.6]}
62... Re2+ {[%clk 0:00:06.5]} 63. Kf4 {[%clk 0:00:01.9]} 63... Bg2 {[%clk
0:00:05.9]} 64. Bc3 {[%clk 0:00:01.8]} 64... Re4+ {[%clk 0:00:06.1]} 65. Kg3
{[%clk 0:00:01.9]} 65... Re3+ {[%clk 0:00:06.7]} 66. Kxg2 {[%clk 0:00:02.8]}
66... Rxc3 {[%clk 0:00:07.6]} 67. Kf2 {[%clk 0:00:02.9]} 67... Rd3 {[%clk
0:00:07.9]} 68. Ke2 {[%clk 0:00:03.5]} 68... a3 {[%clk 0:00:08.6]} 69. Ra8
{[%clk 0:00:03.4]} 69... Kb4 {[%clk 0:00:09]} 70. Ra6 {[%clk 0:00:04]} 70... b5
{[%clk 0:00:09.4]} 71. Ra8 {[%clk 0:00:04.3]} 71... Rb3 {[%clk 0:00:10.3]} 72.
Kd2 {[%clk 0:00:03.9]} 72... Rb2+ {[%clk 0:00:11.2]} 73. Kc1 {[%clk 0:00:04.2]}
73... Rg2 {[%clk 0:00:11.7]} 74. Rf8 {[%clk 0:00:02.8]} 74... a2 {[%clk
0:00:11.6]} 75. Ra8 {[%clk 0:00:02.3]} 75... Kb3 {[%clk 0:00:11.5]} 0-1

[Event "Early-Titled-Tuesday-Blitz-February-13-2024"]
[Site "Chess.com"]
[Date "2024.02.13"]
[Round "7"]
[White "Manukyan_Artak"]
[Black "Rozhkov_V"]
[Result "1-0"]
[WhiteElo "2544"]
[BlackElo "2391"]
[TimeControl "180+1"]
[EndTime "9:22:38 PST"]
[Termination "Manukyan_Artak won by resignation"]

1. e4 {[%clk 0:03:00.9]} 1... e6 {[%clk 0:02:59.5]} 2. d4 {[%clk 0:03:00.7]}
2... d5 {[%clk 0:02:59.8]} 3. e5 {[%clk 0:03:01.3]} 3... c5 {[%clk 0:03:00]} 4.
c3 {[%clk 0:03:00.8]} 4... Qb6 {[%clk 0:02:59.9]} 5. Nf3 {[%clk 0:03:00]} 5...
Nc6 {[%clk 0:03:00.4]} 6. a3 {[%clk 0:02:59]} 6... c4 {[%clk 0:03:00.6]} 7. Nbd2
{[%clk 0:02:58.3]} 7... Na5 {[%clk 0:02:59.3]} 8. g3 {[%clk 0:02:57.1]} 8... Bd7
{[%clk 0:02:59.2]} 9. Bh3 {[%clk 0:02:55.5]} 9... Ne7 {[%clk 0:02:57.1]} 10. O-O
{[%clk 0:02:54.7]} 10... O-O-O {[%clk 0:02:43.3]} 11. Ng5 {[%clk 0:02:49.1]}
11... Be8 {[%clk 0:02:39.1]} 12. f4 {[%clk 0:02:49]} 12... h6 {[%clk 0:02:19.8]}
13. Ngf3 {[%clk 0:02:48.8]} 13... f5 {[%clk 0:02:20]} 14. exf6 {[%clk
0:02:47.2]} 14... gxf6 {[%clk 0:02:20.9]} 15. Re1 {[%clk 0:02:46.9]} 15... Bd7
{[%clk 0:02:21.1]} 16. Qe2 {[%clk 0:02:42.9]} 16... Nf5 {[%clk 0:02:12.2]} 17.
Bxf5 {[%clk 0:02:38.2]} 17... exf5 {[%clk 0:02:13.1]} 18. Nh4 {[%clk 0:02:35.2]}
18... Bd6 {[%clk 0:02:10.4]} 19. Qh5 {[%clk 0:02:22.1]} 19... Rde8 {[%clk
0:02:08.6]} 20. Rf1 {[%clk 0:02:13.4]} 20... Nb3 {[%clk 0:01:55.6]} 21. Nxb3
{[%clk 0:02:07.7]} 21... Qxb3 {[%clk 0:01:56.5]} 22. Nxf5 {[%clk 0:02:05.6]}
22... Bc7 {[%clk 0:01:52.5]} 23. Ne3 {[%clk 0:02:01]} 23... Bc6 {[%clk
0:01:37.6]} 24. Qd1 {[%clk 0:01:54.4]} 24... Qb6 {[%clk 0:01:29.8]} 25. Re1
{[%clk 0:01:47.6]} 25... Re4 {[%clk 0:01:27.1]} 26. Ng2 {[%clk 0:01:45.5]} 26...
Rhe8 {[%clk 0:01:24.3]} 27. Rxe4 {[%clk 0:01:42.4]} 27... Rxe4 {[%clk
0:01:25.2]} 28. Ne3 {[%clk 0:01:37.4]} 28... Bd6 {[%clk 0:00:52.7]} 29. Rb1
{[%clk 0:01:21.1]} 29... Qc7 {[%clk 0:00:46.6]} 30. Qg4+ {[%clk 0:01:16.9]}
30... Kb8 {[%clk 0:00:42.5]} 31. Bd2 {[%clk 0:01:09.2]} 31... a6 {[%clk
0:00:26]} 32. Re1 {[%clk 0:01:06.2]} 32... Qb6 {[%clk 0:00:26]} 33. Bc1 {[%clk
0:01:04.8]} 33... Qd8 {[%clk 0:00:23.9]} 34. Ng2 {[%clk 0:00:57.7]} 34... Qe7
{[%clk 0:00:16.4]} 35. Bd2 {[%clk 0:00:52.9]} 35... Rxe1+ {[%clk 0:00:13]} 36.
Bxe1 {[%clk 0:00:51.8]} 36... Qe4 {[%clk 0:00:13.3]} 37. Kf1 {[%clk 0:00:37.1]}
37... Qb1 {[%clk 0:00:10]} 38. Qe2 {[%clk 0:00:30]} 38... Bd7 {[%clk 0:00:10.1]}
39. Ne3 {[%clk 0:00:26.3]} 39... Bh3+ {[%clk 0:00:09.9]} 40. Kf2 {[%clk
0:00:25.4]} 40... Qe4 {[%clk 0:00:09.6]} 41. Qf3 {[%clk 0:00:20.5]} 41... Qb1
{[%clk 0:00:08.4]} 42. Nxd5 {[%clk 0:00:15.8]} 42... Qxb2+ {[%clk 0:00:08.3]}
43. Qe2 {[%clk 0:00:16.5]} 43... Qb1 {[%clk 0:00:05.2]} 44. Nxf6 {[%clk
0:00:14.4]} 44... Bxa3 {[%clk 0:00:04.6]} 45. d5 {[%clk 0:00:13.4]} 45... Bc5+
{[%clk 0:00:04.5]} 46. Kf3 {[%clk 0:00:11.2]} 46... Qf5 {[%clk 0:00:04.6]} 47.
Qe5+ {[%clk 0:00:11.3]} 47... Ka7 {[%clk 0:00:02.6]} 48. Qxf5 {[%clk 0:00:10.8]}
48... Bxf5 {[%clk 0:00:03.5]} 49. Bf2 {[%clk 0:00:11.3]} 49... Bxf2 {[%clk
0:00:03]} 50. Kxf2 {[%clk 0:00:12.2]} 50... a5 {[%clk 0:00:03.4]} 51. d6 {[%clk
0:00:12.5]} 51... Kb6 {[%clk 0:00:03.9]} 52. d7 {[%clk 0:00:12]} 52... Kc7
{[%clk 0:00:04]} 53. Ke3 {[%clk 0:00:12.1]} 53... Bxd7 {[%clk 0:00:04]} 54. Kd4
{[%clk 0:00:12.7]} 54... Be6 {[%clk 0:00:03.7]} 55. Kc5 {[%clk 0:00:12.1]} 55...
b6+ {[%clk 0:00:02.6]} 56. Kb5 {[%clk 0:00:12.3]} 56... Kb7 {[%clk 0:00:02.8]}
57. g4 {[%clk 0:00:09.5]} 57... Kc7 {[%clk 0:00:01.6]} 58. g5 {[%clk 0:00:09.4]}
58... hxg5 {[%clk 0:00:01.4]} 59. fxg5 {[%clk 0:00:10.3]} 59... Bf7 {[%clk
0:00:02]} 60. h4 {[%clk 0:00:09.1]} 60... Kd6 {[%clk 0:00:02.5]} 61. Kxb6 {[%clk
0:00:07.8]} 61... a4 {[%clk 0:00:02.7]} 62. Ne4+ {[%clk 0:00:08.3]} 62... Ke5
{[%clk 0:00:02.8]} 63. Nd2 {[%clk 0:00:04.1]} 63... a3 {[%clk 0:00:03.2]} 64. g6
{[%clk 0:00:04.7]} 64... Bg8 {[%clk 0:00:02.3]} 65. Nf3+ {[%clk 0:00:04]} 65...
Kf6 {[%clk 0:00:02.2]} 66. Nd4 {[%clk 0:00:04.9]} 66... a2 {[%clk 0:00:02.6]}
67. Nc2 {[%clk 0:00:05.4]} 67... Kxg6 {[%clk 0:00:02.8]} 68. Kc5 {[%clk
0:00:05.5]} 68... Kh5 {[%clk 0:00:02.5]} 69. Kb4 {[%clk 0:00:06]} 69... Kxh4
{[%clk 0:00:03.1]} 70. Ka3 {[%clk 0:00:06.6]} 70... Kg4 {[%clk 0:00:03.7]} 71.
Kxa2 {[%clk 0:00:07]} 71... Kf4 {[%clk 0:00:04.4]} 72. Kb2 {[%clk 0:00:07.9]}
72... Ke4 {[%clk 0:00:04.9]} 73. Nd4 {[%clk 0:00:08.8]} 73... Kd3 {[%clk
0:00:04.9]} 74. Nc6 {[%clk 0:00:09.4]} 74... Bf7 {[%clk 0:00:04.3]} 75. Ne5+
{[%clk 0:00:09]} 75... Ke4 {[%clk 0:00:04.3]} 76. Nxf7 {[%clk 0:00:09.9]} 76...
Kd5 {[%clk 0:00:04.6]} 77. Ng5 {[%clk 0:00:10.1]} 77... Kc5 {[%clk 0:00:05.1]}
78. Nf3 {[%clk 0:00:10.6]} 78... Kb5 {[%clk 0:00:05.5]} 79. Nd4+ {[%clk
0:00:11.5]} 79... Kc5 {[%clk 0:00:06.3]} 80. Ka3 {[%clk 0:00:11.9]} 80... Kd5
{[%clk 0:00:07]} 81. Kb4 {[%clk 0:00:12.4]} 81... Kd6 {[%clk 0:00:06.7]} 82.
Kxc4 {[%clk 0:00:13.3]} 1-0

[Event "Early-Titled-Tuesday-Blitz-February-13-2024"]
[Site "Chess.com"]
[Date "2024.02.13"]
[Round "7"]
[White "Suleyman_Chess06"]
[Black "yosephtaher"]
[Result "0-1"]
[WhiteElo "2763"]
[BlackElo "2927"]
[TimeControl "180+1"]
[EndTime "9:22:43 PST"]
[Termination "yosephtaher won by resignation"]

1. Nf3 {[%clk 0:03:00.9]} 1... c5 {[%clk 0:02:51.6]} 2. c4 {[%clk 0:03:00.5]}
2... g6 {[%clk 0:02:51.1]} 3. Nc3 {[%clk 0:02:59.1]} 3... Bg7 {[%clk 0:02:50]}
4. e3 {[%clk 0:02:59.7]} 4... Nf6 {[%clk 0:02:49.9]} 5. d4 {[%clk 0:03:00.3]}
5... cxd4 {[%clk 0:02:50.8]} 6. exd4 {[%clk 0:03:00.7]} 6... d5 {[%clk
0:02:50.2]} 7. Bg5 {[%clk 0:02:58.8]} 7... dxc4 {[%clk 0:02:50]} 8. Bxc4 {[%clk
0:02:58.9]} 8... O-O {[%clk 0:02:50.8]} 9. d5 {[%clk 0:02:55.9]} 9... Bg4 {[%clk
0:02:49.5]} 10. O-O {[%clk 0:02:53.7]} 10... Nbd7 {[%clk 0:02:48.7]} 11. h3
{[%clk 0:02:53.3]} 11... Bxf3 {[%clk 0:02:47.4]} 12. Qxf3 {[%clk 0:02:54.2]}
12... Ne5 {[%clk 0:02:48.1]} 13. Qe2 {[%clk 0:02:54.3]} 13... Nxc4 {[%clk
0:02:48.9]} 14. Qxc4 {[%clk 0:02:55.2]} 14... Qb6 {[%clk 0:02:48.6]} 15. Qb3
{[%clk 0:02:51.9]} 15... Qxb3 {[%clk 0:02:47.6]} 16. axb3 {[%clk 0:02:52.8]}
16... Rfd8 {[%clk 0:02:48.3]} 17. Ra5 {[%clk 0:02:52.9]} 17... a6 {[%clk
0:02:47.7]} 18. Re1 {[%clk 0:02:53.1]} 18... Rd7 {[%clk 0:02:47.5]} 19. d6
{[%clk 0:02:23.9]} 19... exd6 {[%clk 0:02:43.7]} 20. Bxf6 {[%clk 0:02:24.1]}
20... Bxf6 {[%clk 0:02:42.8]} 21. Nd5 {[%clk 0:02:24.8]} 21... Kg7 {[%clk
0:02:39.9]} 22. Nb6 {[%clk 0:02:22.6]} 22... Bd8 {[%clk 0:02:40.1]} 23. Rxa6
{[%clk 0:02:07]} 23... bxa6 {[%clk 0:02:22.8]} 24. Nxd7 {[%clk 0:02:05.7]} 24...
Ba5 {[%clk 0:02:08.7]} 25. Rd1 {[%clk 0:01:52.7]} 25... Bc7 {[%clk 0:02:03.6]}
26. Rc1 {[%clk 0:01:46.7]} 26... Ra7 {[%clk 0:02:03]} 27. Rc6 {[%clk 0:01:45.6]}
27... f6 {[%clk 0:01:57.8]} 28. Nb6 {[%clk 0:01:44.4]} 28... Rb7 {[%clk
0:01:20.7]} 29. Nd5 {[%clk 0:01:42.7]} 29... Bb8 {[%clk 0:01:21.3]} 30. b4
{[%clk 0:01:29.8]} 30... Rb5 {[%clk 0:01:19.8]} 31. Rxa6 {[%clk 0:00:53]} 31...
Rxd5 {[%clk 0:01:17.3]} 32. Rb6 {[%clk 0:00:51.7]} 32... Bc7 {[%clk 0:01:17.6]}
33. Rb7 {[%clk 0:00:50.1]} 33... Rd1+ {[%clk 0:01:17.9]} 34. Kh2 {[%clk
0:00:50.7]} 34... Rc1 {[%clk 0:01:18.8]} 35. b5 {[%clk 0:00:51]} 35... d5+
{[%clk 0:01:14.5]} 36. g3 {[%clk 0:00:49.9]} 36... Kh6 {[%clk 0:01:13.6]} 37. b6
{[%clk 0:00:48.2]} 37... Be5 {[%clk 0:01:12.7]} 38. f4 {[%clk 0:00:35.7]} 38...
Rc2+ {[%clk 0:01:11.5]} 39. Kh1 {[%clk 0:00:35.2]} 39... Bd4 {[%clk 0:01:11.8]}
40. Rd7 {[%clk 0:00:31.5]} 40... Bxb6 {[%clk 0:01:11.6]} 41. Rxd5 {[%clk
0:00:31.7]} 41... Rxb2 {[%clk 0:01:12.2]} 42. Rd3 {[%clk 0:00:27.9]} 42... Re2
{[%clk 0:01:11.5]} 43. g4 {[%clk 0:00:26.7]} 43... Re3 {[%clk 0:01:10.8]} 44.
Rd6 {[%clk 0:00:25.1]} 44... Rxh3+ {[%clk 0:01:10.9]} 45. Kg2 {[%clk 0:00:24.3]}
45... Rb3 {[%clk 0:01:11.8]} 46. Rxf6 {[%clk 0:00:24.1]} 46... Be3 {[%clk
0:01:09.8]} 47. Rf7 {[%clk 0:00:19.8]} 47... Rb4 {[%clk 0:01:05.9]} 48. Kf3
{[%clk 0:00:12.1]} 48... Bxf4 {[%clk 0:01:05.8]} 49. Rxf4 {[%clk 0:00:11.6]}
49... Rb3+ {[%clk 0:01:04.3]} 50. Kg2 {[%clk 0:00:10.9]} 50... Kg5 {[%clk
0:01:05]} 51. Ra4 {[%clk 0:00:09]} 51... Kh4 {[%clk 0:01:01.7]} 52. Kh2 {[%clk
0:00:08.7]} 52... Rh3+ {[%clk 0:01:00.5]} 53. Kg2 {[%clk 0:00:08.2]} 53... Rg3+
{[%clk 0:01:01.4]} 54. Kh2 {[%clk 0:00:08.8]} 54... Rxg4 {[%clk 0:01:02.3]} 55.
Ra2 {[%clk 0:00:08.2]} 55... h5 {[%clk 0:01:01]} 56. Rc2 {[%clk 0:00:08.8]}
56... Rf4 {[%clk 0:01:01.1]} 57. Re2 {[%clk 0:00:09.3]} 57... g5 {[%clk
0:01:01.4]} 58. Kg2 {[%clk 0:00:10.2]} 58... g4 {[%clk 0:01:01.6]} 59. Rd2
{[%clk 0:00:09.3]} 59... Kg5 {[%clk 0:01:02.1]} 60. Rd5+ {[%clk 0:00:09.3]}
60... Rf5 {[%clk 0:01:02.8]} 61. Rd8 {[%clk 0:00:08.7]} 61... h4 {[%clk
0:01:03.7]} 62. Rg8+ {[%clk 0:00:09.1]} 62... Kf4 {[%clk 0:01:04.3]} 63. Rb8
{[%clk 0:00:09.7]} 63... Re5 {[%clk 0:01:02.9]} 64. Rf8+ {[%clk 0:00:10]} 64...
Rf5 {[%clk 0:01:02.4]} 65. Rb8 {[%clk 0:00:10.6]} 65... h3+ {[%clk 0:01:02.7]}
66. Kh2 {[%clk 0:00:11.1]} 66... Rf7 {[%clk 0:00:51.5]} 67. Rc8 {[%clk
0:00:08.8]} 67... Rf6 {[%clk 0:00:46.9]} 68. Rb8 {[%clk 0:00:08.5]} 68... Ra6
{[%clk 0:00:42.7]} 69. Rf8+ {[%clk 0:00:08.5]} 69... Kg5 {[%clk 0:00:43.4]} 70.
Rg8+ {[%clk 0:00:09.1]} 70... Rg6 {[%clk 0:00:43.8]} 71. Rb8 {[%clk 0:00:09.2]}
71... Rh6 {[%clk 0:00:32.2]} 72. Rg8+ {[%clk 0:00:09.2]} 72... Kh4 {[%clk
0:00:32.6]} 73. Rg7 {[%clk 0:00:08.4]} 73... Rh8 {[%clk 0:00:32.8]} 74. Rg6
{[%clk 0:00:06.7]} 74... Ra8 {[%clk 0:00:33]} 75. Rh6+ {[%clk 0:00:06.6]} 75...
Kg5 {[%clk 0:00:33.6]} 76. Rb6 {[%clk 0:00:07.3]} 76... Ra2+ {[%clk 0:00:34]}
77. Kg1 {[%clk 0:00:07.8]} 77... Kh4 {[%clk 0:00:34]} 78. Rb3 {[%clk 0:00:06.8]}
78... Rd2 {[%clk 0:00:31.7]} 79. Rb1 {[%clk 0:00:05.3]} 79... g3 {[%clk
0:00:31.5]} 80. Rb4+ {[%clk 0:00:05.3]} 80... Kg5 {[%clk 0:00:32.1]} 81. Rb5+
{[%clk 0:00:05.4]} 81... Kf4 {[%clk 0:00:32.4]} 82. Rb1 {[%clk 0:00:05.6]} 82...
Ke3 {[%clk 0:00:31.5]} 83. Kh1 {[%clk 0:00:03]} 83... Ke2 {[%clk 0:00:30.6]} 84.
Rf1 {[%clk 0:00:01.4]} 84... Rd1 {[%clk 0:00:30.3]} 85. Rg1 {[%clk 0:00:01.7]}
85... Rxg1+ {[%clk 0:00:30.3]} 86. Kxg1 {[%clk 0:00:02.2]} 86... g2 {[%clk
0:00:30.3]} 87. Kh2 {[%clk 0:00:02.5]} 87... Kf2 {[%clk 0:00:31.2]} 0-1